bitfinex/quotes_BTCUSD_20250204
["timestamp","ask_amount","ask_price","bid_price","bid_amount"]
[1738659907896,0.0001068,98452.0,98451.0,0.20021554]
[1738659908888,0.0001068,98452.0,98451.0,0.22321554]
[1738659910953,0.0001068,98452.0,98451.0,0.20021554]
[1738659911144,0.0001068,98452.0,98451.0,0.04785554]
[1738659911344,0.203126,98461.0,98451.0,0.01887257]
[1738659911554,0.00719578,98460.0,98451.0,0.01901413]
[1738659912496,0.152351,98457.0,98451.0,0.01901413]
[1738659912692,0.00719578,98460.0,98451.0,0.01901413]
[1738659912892,0.0071812,98456.0,98451.0,0.01901413]
[1738659913093,0.10238506,98461.0,98451.0,0.00014156]
[1738659913299,0.00717756,98455.0,98451.0,0.00014156]
[1738659913543,0.152353,98455.0,98451.0,0.00014156]
[1738659913744,0.00717391,98454.0,98451.0,0.00014156]
[1738659913944,0.152348,98459.0,98451.0,0.00014156]
[1738659914159,0.00717027,98453.0,98451.0,0.00014156]
[1738659914443,0.152348,98459.0,98451.0,0.00014156]
[1738659914744,0.00718849,98458.0,98451.0,0.00014156]
[1738659915110,0.10238506,98461.0,98451.0,0.00014156]
[1738659915111,0.152348,98459.0,98451.0,0.00014156]
[1738659915301,0.00718485,98457.0,98451.0,0.00014156]
[1738659915509,0.152348,98459.0,98451.0,0.00014156]
[1738659915706,0.0071812,98456.0,98451.0,0.00014156]
[1738659916034,0.25473106,98461.0,98451.0,0.15250056]
[1738659916349,0.203123,98463.0,98451.0,0.15250056]
[1738659916350,0.0808,98458.0,98451.0,0.00014156]
[1738659916552,0.152358,98452.0,98451.0,0.00014156]
[1738659916753,0.30483198,98452.0,98451.0,0.00014156]
[1738659916889,0.31030969,98452.0,98451.0,0.00014156]
[1738659917345,0.15795169,98452.0,98451.0,0.00014156]
[1738659917533,0.05556663,98452.0,98451.0,0.00014156]
[1738659917743,0.20792463,98452.0,98451.0,0.00014156]
[1738659918649,0.31199855,98452.0,98451.0,0.00014156]
[1738659918857,0.31030969,98452.0,98451.0,0.00014156]
[1738659923071,0.15795169,98452.0,98451.0,0.00014156]
[1738659923467,0.05556663,98452.0,98451.0,0.00014156]
[1738659923681,0.00716663,98452.0,98451.0,0.1814818]
[1738659923903,0.0001068,98466.0,98451.0,0.0291218]
[1738659924126,0.00721035,98464.0,98463.0,0.15234]
[1738659924326,0.0001068,98466.0,98463.0,0.15234]
[1738659924526,0.0001068,98466.0,98464.0,0.152339]
[1738659924945,0.00732079,98465.0,98462.0,0.203122]
[1738659925388,0.00732079,98465.0,98464.0,0.152339]
[1738659925591,0.0001068,98465.0,98464.0,0.152339]
[1738659925789,0.0001068,98465.0,98464.0,0.18131168]
[1738659926036,0.00168841,98488.0,98464.0,0.40391168]
[1738659926245,0.0001068,98511.0,98503.0,0.152279]
[1738659927118,0.0001068,98511.0,98491.0,0.0818]
[1738659927119,0.34419935,98504.0,98472.0,0.203103]
[1738659927335,0.34419935,98504.0,98471.0,0.0755]
[1738659927336,0.19192135,98504.0,98502.0,0.152281]
[1738659927624,0.19192135,98504.0,98503.0,0.152279]
[1738659927625,0.08967785,98504.0,98503.0,0.152279]
[1738659927848,0.00014156,98504.0,98503.0,0.152279]
[1738659928132,0.00014156,98504.0,98477.0,0.203093]
[1738659928358,0.00014156,98504.0,98499.0,0.152284]
[1738659928578,0.00014156,98504.0,98500.0,0.152284]
[1738659928776,0.10238506,98503.0,98493.0,0.152293]
[1738659928997,0.0483,98494.0,98479.0,0.152315]
[1738659929293,0.10238506,98493.0,98475.0,0.15]
[1738659929503,0.10238506,98493.0,98476.0,0.203095]
[1738659929640,0.25468006,98493.0,98477.0,0.355412]
[1738659929846,0.25468006,98493.0,98473.0,0.15]
[1738659929847,0.152298,98492.0,98473.0,0.15]
[1738659930046,0.0483,98494.0,98469.0,0.0149925]
[1738659930047,0.25468406,98491.0,98469.0,0.0149925]
[1738659930266,0.10238506,98491.0,98484.0,0.152308]
[1738659930454,0.152304,98487.0,98481.0,0.203083]
[1738659930657,0.203067,98490.0,98473.0,0.15]
[1738659930864,0.30544906,98491.0,98475.0,0.15]
[1738659931064,0.152299,98490.0,98483.0,0.15231]
[1738659931268,0.152299,98490.0,98467.0,0.15]
[1738659931269,0.10238506,98489.0,98471.0,0.203105]
[1738659931519,0.10238506,98489.0,98473.0,0.203101]
[1738659931704,0.10238506,98489.0,98467.0,0.15]
[1738659931879,0.00661398,98488.0,98467.0,0.15]
[1738659932085,0.152309,98484.0,98474.0,0.152323]
[1738659932321,0.10238506,98483.0,98474.0,0.152323]
[1738659932521,0.10899321,98483.0,98474.0,0.152323]
[1738659932665,0.10899321,98483.0,98475.0,0.152322]
[1738659932869,0.00660815,98483.0,98474.0,0.203099]
[1738659933161,0.251358,98494.0,98472.0,0.51572]
[1738659933367,0.152298,98491.0,98482.0,0.15231]
[1738659933665,0.152301,98489.0,98478.0,0.203089]
[1738659933867,0.10238506,98489.0,98472.0,0.51572]
[1738659934078,0.00661398,98488.0,98487.0,0.152304]
[1738659934418,0.152293,98495.0,98486.0,0.152304]
[1738659934627,0.10238506,98495.0,98473.0,0.023]
[1738659934829,0.00662097,98494.0,98486.0,0.152304]
[1738659935075,0.25467706,98495.0,98474.0,0.203099]
[1738659935246,0.00661981,98493.0,98486.0,0.152304]
[1738659935454,0.00662097,98494.0,98473.0,0.023]
[1738659935651,0.00661864,98492.0,98472.0,0.51572]
[1738659935855,0.152326,98473.0,98472.0,0.51572]
[1738659936079,0.25471106,98473.0,98472.0,0.51572]
[1738659936236,0.26130755,98473.0,98472.0,0.51572]
[1738659936444,0.26380474,98473.0,98472.0,0.51572]
[1738659938846,0.26380474,98473.0,98472.0,0.51594428]
[1738659942505,0.11147874,98473.0,98472.0,0.51594428]
[1738659942701,0.26380474,98473.0,98472.0,0.51594428]
[1738659943111,0.203093,98477.0,98472.0,0.51594428]
[1738659943330,0.16823997,98473.0,98472.0,0.51594428]
[1738659943671,0.152326,98473.0,98472.0,0.51594428]
[1738659943899,0.16823997,98473.0,98472.0,0.51594428]
[1738659945762,0.27062503,98473.0,98472.0,0.51594428]
[1738659945978,0.27062503,98473.0,98472.0,0.00022428]
[1738659946123,0.47170633,98473.0,98472.0,0.00022428]
[1738659946327,0.39402503,98473.0,98472.0,0.00022428]
[1738659947764,0.40850018,98473.0,98472.0,0.00022428]
[1738659951487,0.40860698,98473.0,98472.0,0.00022428]
[1738659952249,0.33150698,98473.0,98472.0,0.00022428]
[1738659952652,0.31703183,98473.0,98472.0,0.00022428]
[1738659952872,0.30957876,98473.0,98472.0,0.00022428]
[1738659959362,0.31239906,98473.0,98472.0,0.00022428]
[1738659960582,0.67894886,98473.0,98470.0,1.37991328]
[1738659960788,0.47562406,98471.0,98470.0,1.27835828]
[1738659960909,0.48408146,98471.0,98470.0,1.19711428]
[1738659961120,0.51990059,98471.0,98470.0,1.19711428]
[1738659961324,0.62239531,98471.0,98470.0,1.19711428]
[1738659961550,0.70199531,98471.0,98470.0,1.19711428]
[1738659961902,0.72094647,98471.0,98470.0,1.06398567]
[1738659962106,2.42518627,98471.0,98470.0,1.00664583]
[1738659962300,2.42518627,98471.0,98470.0,0.89567386]
[1738659962637,2.37578627,98471.0,98470.0,0.52076886]
[1738659962842,2.37578627,98471.0,98470.0,0.45983586]
[1738659962958,2.16463155,98471.0,98470.0,0.41921386]
[1738659963164,2.10548155,98471.0,98470.0,0.41921386]
[1738659963370,2.13579068,98471.0,98470.0,0.41921386]
[1738659963573,2.13679068,98471.0,98470.0,0.41921386]
[1738659964055,0.73349068,98471.0,98470.0,0.41921386]
[1738659964236,0.8359854,98471.0,98470.0,0.41921386]
[1738659964858,2.2382854,98471.0,98470.0,0.21983686]
[1738659965061,2.2991954,98471.0,98470.0,0.10179386]
[1738659965268,0.312358,98452.0,98451.0,0.00022428]
[1738659965466,0.66108286,98452.0,98451.0,0.00022428]
[1738659965672,0.67231508,98452.0,98451.0,0.00022428]
[1738659965885,0.72157537,98452.0,98451.0,0.00022428]
[1738659966381,0.73157537,98452.0,98451.0,0.00022428]
[1738659966619,0.83407009,98452.0,98451.0,0.00022428]
[1738659966800,0.82907009,98452.0,98451.0,0.00022428]
[1738659967149,0.79876096,98452.0,98451.0,0.00022428]
[1738659968195,0.66826624,98452.0,98451.0,0.00022428]
[1738659968408,0.67326624,98452.0,98451.0,0.00022428]
[1738659968612,0.66326624,98452.0,98451.0,0.00022428]
[1738659968868,0.67326624,98452.0,98451.0,0.00022428]
[1738659969222,0.66826624,98452.0,98451.0,0.00022428]
[1738659969421,0.59056624,98452.0,98451.0,0.00022428]
[1738659969648,0.59556624,98452.0,98451.0,0.00022428]
[1738659969850,0.69806096,98452.0,98451.0,0.00022428]
[1738659971695,0.71303275,98452.0,98451.0,0.00022428]
[1738659973245,0.77394275,98452.0,98451.0,0.00022428]
[1738659976229,0.80420692,98452.0,98451.0,0.00022428]
[1738659977225,0.79420692,98452.0,98451.0,0.00022428]
[1738659977533,0.6358022,98452.0,98451.0,0.00022428]
[1738659978182,0.3234442,98452.0,98451.0,0.00022428]
[1738659978388,0.06044755,98452.0,98451.0,0.07582428]
[1738659978598,0.06044755,98452.0,98451.0,0.27468428]
[1738659978811,0.04921533,98452.0,98451.0,0.27968428]
[1738659979023,9.58e-05,98471.0,98463.0,0.152341]
[1738659979255,9.58e-05,98471.0,98451.0,0.12732428]
[1738659979256,9.58e-05,98471.0,98470.0,0.15233]
[1738659979459,0.10248086,98471.0,98464.0,0.1254]
[1738659979668,0.152338,98465.0,98464.0,0.1254]
[1738659979877,0.10238506,98465.0,98464.0,0.1254]
[1738659980083,0.01633453,98465.0,98464.0,0.1254]
[1738659980523,9.58e-05,98471.0,98464.0,0.1254]
[1738659980725,0.01633453,98465.0,98464.0,0.1254]
[1738659980925,0.10238506,98470.0,98464.0,0.1254]
[1738659981125,0.01633453,98465.0,98464.0,0.1254]
[1738659981363,0.10238506,98465.0,98464.0,0.1254]
[1738659981799,0.11871959,98465.0,98464.0,0.1254]
[1738659982216,0.01633453,98465.0,98464.0,0.277739]
[1738659982421,9.58e-05,98471.0,98464.0,0.1304]
[1738659982634,9.58e-05,98471.0,98470.0,0.15233]
[1738659982836,9.58e-05,98471.0,98470.0,0.20293]
[1738659983045,9.58e-05,98471.0,98470.0,0.1258]
[1738659983257,9.58e-05,98471.0,98470.0,0.27813]
[1738659984061,9.58e-05,98471.0,98470.0,0.29290027]
[1738659984346,9.58e-05,98471.0,98470.0,0.1208]
[1738659984984,0.01645132,98471.0,98470.0,0.1208]
[1738659985161,9.58e-05,98471.0,98470.0,0.1208]
[1738659985413,0.01645132,98471.0,98470.0,0.1208]
[1738659985601,9.58e-05,98471.0,98470.0,0.1208]
[1738659985737,0.01645132,98471.0,98470.0,0.1208]
[1738659986322,0.01645132,98471.0,98470.0,0.27313]
[1738659986523,9.58e-05,98471.0,98470.0,0.27813]
[1738659986638,9.58e-05,98471.0,98470.0,0.1258]
[1738659987444,0.0002026,98471.0,98470.0,0.1258]
[1738659987982,0.0002026,98471.0,98470.0,0.27813]
[1738659995216,0.0002026,98471.0,98470.0,0.1258]
[1738659995799,0.0002026,98471.0,98470.0,0.27813]
[1738659997009,0.0001068,98491.0,98487.0,0.005]
[1738659997216,0.0001068,98491.0,98490.0,0.157299]
[1738659998054,0.0001068,98491.0,98488.0,0.1279]
[1738659998296,0.10238506,98490.0,98488.0,0.0497]
[1738659998522,0.152308,98485.0,98478.0,0.0779]
[1738659998731,0.152308,98485.0,98477.0,0.0486]
[1738659998732,0.10238506,98485.0,98477.0,0.0486]
[1738659999259,0.10238506,98484.0,98477.0,0.0486]
[1738660000435,0.0001068,98490.0,98477.0,0.0486]
[1738660000436,0.0001068,98490.0,98482.0,0.005]
[1738660000679,0.10249186,98490.0,98488.0,0.152301]
[1738660000952,0.0001068,98490.0,98489.0,0.157301]
[1738660001216,0.0001068,98490.0,98488.0,0.152302]
[1738660001681,0.0001068,98490.0,98489.0,0.157301]
[1738660001949,0.0001068,98490.0,98489.0,0.286101]
[1738660002199,0.0001068,98490.0,98489.0,0.436101]
[1738660002692,0.0001068,98490.0,98489.0,0.44972921]
[1738660008233,0.0001068,98490.0,98489.0,0.55211427]
[1738660008434,0.0001068,98511.0,98510.0,0.152268]
[1738660008587,0.00057879,98511.0,98510.0,0.278768]
[1738660021853,0.00057879,98511.0,98510.0,0.0468]
[1738660022059,0.00057879,98511.0,98500.0,0.005]
[1738660022257,0.12132285,98510.0,98502.0,0.005]
[1738660022424,0.12030026,98510.0,98506.0,0.152273]
[1738660022630,0.12030026,98510.0,98503.0,0.152279]
[1738660023002,0.12030026,98510.0,98502.0,0.20304]
[1738660023209,0.12030026,98510.0,98498.0,0.203048]
[1738660023210,0.12030026,98510.0,98497.0,0.0489]
[1738660023415,0.12030026,98510.0,98485.0,0.1255]
[1738660023591,0.152291,98496.0,98487.0,0.005]
[1738660023816,0.10340765,98495.0,98485.0,0.0489]
[1738660024023,0.12127041,98495.0,98485.0,0.251975]
[1738660024135,0.12127041,98495.0,98486.0,0.152305]
[1738660024333,0.203058,98494.0,98485.0,0.0489]
[1738660024541,0.21091,98519.0,98488.0,0.005]
[1738660024783,0.10238506,98510.0,98488.0,0.005]
[1738660024989,0.152284,98500.0,98491.0,0.152297]
[1738660025187,0.10238506,98499.0,98492.0,0.152295]
[1738660025565,0.10238506,98499.0,98490.0,0.203066]
[1738660025787,0.10238506,98499.0,98495.0,0.15229]
[1738660025988,0.10238506,98499.0,98488.0,0.005]
[1738660026740,0.00102259,98498.0,98485.0,0.0489]
[1738660026852,0.152293,98494.0,98485.0,0.0489]
[1738660027058,0.10238506,98493.0,98486.0,0.203073]
[1738660027296,0.10238506,98493.0,98485.0,0.0489]
[1738660027718,0.25468006,98493.0,98485.0,0.0489]
[1738660028523,0.10238506,98493.0,98478.0,0.005]
[1738660028712,0.00102259,98492.0,98479.0,0.203088]
[1738660028900,0.152301,98490.0,98481.0,0.152313]
[1738660029123,0.152304,98487.0,98478.0,0.20309]
[1738660029272,0.10340765,98486.0,98472.0,0.0471]
[1738660029648,0.152316,98480.0,98472.0,0.0471]
[1738660029869,0.10340765,98479.0,98472.0,0.0471]
[1738660030072,0.10340765,98479.0,98471.0,0.00022428]
[1738660030555,0.152322,98476.0,98471.0,0.00022428]
[1738660030756,0.152325,98474.0,98471.0,0.00022428]
[1738660031071,0.10238506,98473.0,98471.0,0.00022428]
[1738660031858,0.16520447,98472.0,98471.0,0.00022428]
[1738660032064,0.26758953,98472.0,98471.0,0.00022428]
[1738660032221,0.36379441,98472.0,98471.0,0.00022428]
[1738660032993,0.26656694,98472.0,98471.0,0.00022428]
[1738660034875,0.58520674,98472.0,98471.0,0.00022428]
[1738660035332,0.59020674,98472.0,98471.0,0.00022428]
[1738660036195,0.60909757,98472.0,98471.0,0.00022428]
[1738660037653,0.69489757,98472.0,98471.0,0.00022428]
[1738660037858,0.79739229,98472.0,98471.0,0.00022428]
[1738660038848,0.82758115,98472.0,98471.0,0.00022428]
[1738660042680,0.71008643,98472.0,98471.0,0.00022428]
[1738660042886,0.46128643,98472.0,98471.0,0.00022428]
[1738660043086,0.30895943,98472.0,98471.0,0.00022428]
[1738660043312,0.46128643,98472.0,98471.0,0.00022428]
[1738660043990,0.48928643,98472.0,98471.0,0.00022428]
[1738660044226,0.75178115,98472.0,98471.0,0.00022428]
[1738660044415,0.70270146,98472.0,98471.0,0.00022428]
[1738660045100,0.70270146,98472.0,98471.0,2.8e-07]
[1738660046056,0.60020674,98472.0,98471.0,2.8e-07]
[1738660046628,0.6491891,98472.0,98471.0,2.8e-07]
[1738660048247,0.7100991,98472.0,98471.0,2.8e-07]
[1738660048797,0.7050991,98472.0,98471.0,2.8e-07]
[1738660048936,0.6720991,98472.0,98471.0,2.8e-07]
[1738660049139,0.77459382,98472.0,98471.0,2.8e-07]
[1738660049342,0.6950991,98472.0,98471.0,2.8e-07]
[1738660049662,0.7050991,98472.0,98471.0,2.8e-07]
[1738660049919,0.67495611,98472.0,98471.0,2.8e-07]
[1738660050093,0.66495611,98472.0,98471.0,2.8e-07]
[1738660050299,0.77745083,98472.0,98471.0,2.8e-07]
[1738660050865,0.76361146,98472.0,98471.0,2.8e-07]
[1738660051065,0.84191146,98472.0,98471.0,2.8e-07]
[1738660051687,0.84191146,98472.0,98452.0,0.00022428]
[1738660051688,0.363266,98453.0,98452.0,0.00022428]
[1738660052021,0.72164873,98453.0,98452.0,0.00022428]
[1738660052232,0.64419523,98453.0,98452.0,0.00022428]
[1738660052393,0.65919523,98453.0,98452.0,0.00022428]
[1738660053015,0.65919523,98453.0,98452.0,0.00032008]
[1738660053217,0.67203122,98453.0,98452.0,0.00032008]
[1738660053597,0.7211369,98453.0,98452.0,0.00032008]
[1738660054584,0.7111369,98453.0,98452.0,0.00032008]
[1738660054788,0.82363162,98453.0,98452.0,0.00032008]
[1738660055197,0.81363162,98453.0,98452.0,0.00032008]
[1738660055405,0.82363162,98453.0,98452.0,0.00032008]
[1738660056008,0.81363162,98453.0,98452.0,0.00032008]
[1738660056443,0.7111369,98453.0,98452.0,0.00032008]
[1738660056869,0.6452269,98453.0,98452.0,0.00032008]
[1738660057430,0.6502269,98453.0,98452.0,0.00032008]
[1738660057644,0.6452269,98453.0,98452.0,0.00032008]
[1738660059765,0.6222269,98453.0,98452.0,0.00032008]
[1738660061304,0.4722269,98453.0,98452.0,0.00032008]
[1738660061475,0.30703491,98453.0,98452.0,0.00032008]
[1738660061677,0.27681603,98453.0,98452.0,0.00032008]
[1738660061899,0.02879117,98453.0,98452.0,0.23657808]
[1738660062089,0.0001068,98472.0,98463.0,0.005]
[1738660062295,0.25471406,98471.0,98467.0,0.1279]
[1738660062533,0.00994402,98470.0,98467.0,0.1279]
[1738660062899,0.10238506,98469.0,98467.0,0.1279]
[1738660063106,0.00993935,98468.0,98467.0,0.1279]
[1738660063318,0.11232441,98468.0,98467.0,0.1279]
[1738660063525,0.00993935,98468.0,98467.0,0.285235]
[1738660063731,0.0001068,98472.0,98471.0,0.152329]
[1738660064777,0.0001068,98472.0,98471.0,0.157329]
[1738660066547,0.0001068,98472.0,98471.0,0.286429]
[1738660067593,0.152276,98505.0,98490.0,0.152299]
[1738660067765,0.203026,98510.0,98490.0,0.280299]
[1738660067974,0.202987,98529.0,98490.0,0.280299]
[1738660068172,0.152261,98515.0,98490.0,0.280299]
[1738660068376,0.15226,98516.0,98490.0,0.280299]
[1738660068789,0.152259,98516.0,98498.0,0.275487]
[1738660068988,0.14573082,98499.0,98498.0,0.275487]
[1738660069190,0.15574245,98499.0,98498.0,0.280487]
[1738660069590,0.41041251,98499.0,98498.0,0.1232]
[1738660069789,0.41041251,98499.0,98498.0,0.0461]
[1738660071818,0.41041251,98499.0,98483.0,0.0467]
[1738660071819,0.25812751,98499.0,98483.0,0.0467]
[1738660072043,0.152309,98484.0,98483.0,0.0467]
[1738660072246,0.25469406,98484.0,98483.0,0.0467]
[1738660072451,0.26465048,98484.0,98483.0,0.0467]
[1738660073218,0.25965048,98484.0,98483.0,0.0467]
[1738660073688,0.10734148,98484.0,98483.0,0.0467]
[1738660074408,0.25965048,98484.0,98483.0,0.0467]
[1738660077000,0.26539176,98484.0,98483.0,0.0467]
[1738660077209,0.11777682,98484.0,98483.0,0.0467]
[1738660077445,0.26790265,98484.0,98483.0,0.0467]
[1738660077624,0.11559365,98484.0,98483.0,0.0467]
[1738660078993,0.26790265,98484.0,98483.0,0.0467]
[1738660080401,0.11517205,98484.0,98483.0,0.0467]
[1738660080628,0.26748105,98484.0,98483.0,0.0467]
[1738660081402,0.26081185,98484.0,98471.0,0.04742428]
[1738660081633,0.152327,98472.0,98471.0,0.00022428]
[1738660081835,0.25573465,98472.0,98471.0,0.00022428]
[1738660082049,0.26777328,98472.0,98471.0,0.00022428]
[1738660082275,0.41341308,98472.0,98471.0,0.00022428]
[1738660082474,0.56341308,98472.0,98471.0,0.00022428]
[1738660082651,0.58641308,98472.0,98471.0,0.00022428]
[1738660083572,0.56341308,98472.0,98471.0,0.00022428]
[1738660084604,0.41341308,98472.0,98471.0,0.00022428]
[1738660084809,0.26108608,98472.0,98471.0,0.00022428]
[1738660084998,0.26108608,98472.0,98471.0,0.27535328]
[1738660085487,0.24802486,98472.0,98471.0,0.27535328]
[1738660085708,0.26095173,98472.0,98471.0,0.27535328]
[1738660086442,0.26095173,98472.0,98471.0,0.28035328]
[1738660086443,0.01292687,98472.0,98471.0,0.28035328]
[1738660086688,0.0001068,98484.0,98483.0,0.15231]
[1738660086887,0.0001068,98484.0,98483.0,0.27891]
[1738660087765,0.0001068,98484.0,98483.0,0.29186047]
[1738660088358,0.0001068,98511.0,98484.0,0.15]
[1738660088553,0.0001068,98511.0,98498.0,0.283987]
[1738660089212,0.0001068,98511.0,98498.0,0.278987]
[1738660089401,0.152274,98507.0,98498.0,0.283987]
[1738660089526,0.203025,98510.0,98498.0,0.283987]
[1738660089738,0.0001068,98511.0,98498.0,0.0484]
[1738660089739,0.203035,98506.0,98498.0,0.0484]
[1738660089944,0.203027,98509.0,98498.0,0.0484]
[1738660090324,0.203031,98507.0,98498.0,0.0484]
[1738660090525,0.152276,98506.0,98498.0,0.0484]
[1738660090731,0.0001068,98511.0,98498.0,0.0484]
[1738660090893,0.203034,98506.0,98498.0,0.0484]
[1738660091231,0.152281,98502.0,98498.0,0.0484]
[1738660091717,0.01356686,98499.0,98498.0,0.0484]
[1738660092338,0.01010688,98499.0,98498.0,0.0484]
[1738660092605,0.06148566,98505.0,98498.0,0.0484]
[1738660092816,0.0615479,98505.0,98504.0,0.152278]
[1738660093169,0.0615479,98505.0,98502.0,0.20804]
[1738660093372,0.0615479,98505.0,98498.0,0.0484]
[1738660093746,0.0615479,98505.0,98500.0,0.005]
[1738660094136,0.0615479,98505.0,98499.0,0.152285]
[1738660094477,0.0616547,98505.0,98501.0,0.152282]
[1738660094970,0.0616547,98505.0,98500.0,0.005]
[1738660095437,0.0616547,98505.0,98500.0,0.203044]
[1738660095633,0.0616547,98505.0,98502.0,0.152279]
[1738660096070,0.0616547,98505.0,98503.0,0.152278]
[1738660096308,0.0616547,98505.0,98504.0,0.152278]
[1738660096520,0.0616547,98505.0,98504.0,0.157278]
[1738660096943,0.00016904,98505.0,98504.0,0.157278]
[1738660099968,0.00016904,98505.0,98504.0,0.238378]
[1738660100736,0.00016904,98505.0,98504.0,0.233378]
[1738660101341,0.00016904,98505.0,98504.0,0.0861]
[1738660101745,0.00016904,98505.0,98504.0,0.0811]
[1738660101933,0.1025541,98505.0,98498.0,0.0484]
[1738660102185,0.11353201,98504.0,98485.0,0.0494]
[1738660102364,0.152297,98492.0,98485.0,0.0494]
[1738660102606,0.00102259,98503.0,98487.0,0.005]
[1738660102782,0.00102259,98503.0,98485.0,0.0494]
[1738660102783,0.01007891,98491.0,98485.0,0.0494]
[1738660103003,0.0616547,98505.0,98485.0,0.0494]
[1738660103004,0.10238506,98490.0,98485.0,0.0494]
[1738660103343,0.11246047,98490.0,98475.0,0.0766]
[1738660103573,0.31552847,98490.0,98475.0,0.0766]
[1738660103749,0.20307,98488.0,98474.0,0.005]
[1738660103993,0.15231,98483.0,98475.0,0.005]
[1738660104201,0.10238506,98482.0,98475.0,0.005]
[1738660104405,0.1124325,98482.0,98475.0,0.005]
[1738660104980,0.1124325,98482.0,98475.0,0.157321]
[1738660105570,0.1124325,98482.0,98475.0,0.005]
[1738660106613,0.1124325,98482.0,98475.0,0.157322]
[1738660107014,0.01004744,98482.0,98481.0,0.157313]
[1738660107384,0.01004744,98482.0,98479.0,0.203087]
[1738660107385,0.152298,98491.0,98480.0,0.152314]
[1738660107590,0.10238506,98491.0,98478.0,0.208089]
[1738660107855,0.01076805,98490.0,98480.0,0.152314]
[1738660108248,0.01076805,98490.0,98484.0,0.005]
[1738660108677,0.25468406,98491.0,98484.0,0.005]
[1738660108891,0.01076455,98489.0,98484.0,0.005]
[1738660109095,0.11314612,98488.0,98475.0,0.00022428]
[1738660109310,0.152309,98484.0,98475.0,0.00022428]
[1738660109720,0.01074357,98483.0,98479.0,0.005]
[1738660109925,0.152309,98484.0,98475.0,0.00022428]
[1738660110102,0.01074357,98483.0,98475.0,0.00022428]
[1738660110304,0.01074357,98483.0,98479.0,0.005]
[1738660110480,0.10238506,98482.0,98475.0,0.00022428]
[1738660110690,0.152321,98476.0,98475.0,0.00022428]
[1738660111066,0.3279334,98476.0,98475.0,0.00022428]
[1738660111298,0.32691081,98476.0,98475.0,0.00022428]
[1738660113188,0.17458981,98476.0,98475.0,0.00022428]
[1738660113399,0.32691081,98476.0,98475.0,0.00022428]
[1738660114158,0.07220475,98476.0,98475.0,0.15254628]
[1738660114369,0.06148566,98476.0,98475.0,0.15754628]
[1738660115601,0.06148566,98476.0,98475.0,0.00022428]
[1738660115803,0.16387072,98476.0,98475.0,0.00022428]
[1738660115993,0.07220475,98476.0,98475.0,0.15754628]
[1738660116472,0.06148566,98476.0,98475.0,0.15754628]
[1738660116689,0.06148566,98476.0,98472.0,0.00357289]
[1738660116878,0.152327,98472.0,98471.0,0.00022428]
[1738660117097,0.152327,98473.0,98471.0,0.00022428]
[1738660117299,0.0107051,98472.0,98471.0,0.00022428]
[1738660117851,0.0107051,98472.0,98471.0,0.15255328]
[1738660118061,0.10238506,98475.0,98471.0,0.1526433]
[1738660118642,0.01071209,98474.0,98471.0,0.0003153]
[1738660119215,0.10238506,98473.0,98471.0,0.0003153]
[1738660119463,0.10238506,98473.0,98472.0,0.152327]
[1738660119654,0.01070487,98472.0,98471.0,0.2034183]
[1738660119849,0.06148566,98476.0,98471.0,0.0003153]
[1738660119850,0.10238506,98475.0,98471.0,0.0003153]
[1738660120091,0.01070487,98472.0,98471.0,0.0003153]
[1738660120402,0.01070487,98472.0,98471.0,0.1526443]
[1738660120589,0.10238506,98475.0,98471.0,0.1526443]
[1738660120823,0.01070487,98472.0,98471.0,0.1526443]
[1738660121004,0.10238506,98475.0,98471.0,0.1526443]
[1738660121151,0.01070487,98472.0,98471.0,0.1526443]
[1738660121349,0.10238506,98475.0,98471.0,0.0003153]
[1738660121590,0.01071187,98474.0,98471.0,0.0003153]
[1738660122632,0.01071187,98474.0,98471.0,0.1526433]
[1738660122796,0.01071187,98474.0,98471.0,0.0003153]
[1738660123303,0.01071187,98474.0,98471.0,0.1526443]
[1738660124060,0.01071187,98474.0,98472.0,0.152326]
[1738660124235,0.01071187,98474.0,98473.0,0.152326]
[1738660124643,0.10238506,98475.0,98473.0,0.152326]
[1738660125003,0.01071187,98474.0,98473.0,0.152326]
[1738660125200,0.01071187,98474.0,98472.0,0.152327]
[1738660125400,0.01071187,98474.0,98473.0,0.152326]
[1738660126054,0.10238506,98475.0,98473.0,0.152326]
[1738660126394,0.01071187,98474.0,98473.0,0.152326]
[1738660126595,0.01071187,98474.0,98473.0,0.15589889]
[1738660126807,0.06148566,98476.0,98475.0,0.152322]
[1738660128467,0.06148566,98476.0,98471.0,0.00388819]
[1738660128468,0.16387072,98476.0,98471.0,0.00388819]
[1738660128691,0.152327,98472.0,98471.0,0.0003153]
[1738660128914,0.25573465,98472.0,98471.0,0.0003153]
[1738660129116,0.26541693,98472.0,98471.0,0.0003153]
[1738660130892,0.11308993,98472.0,98471.0,0.0003153]
[1738660131312,0.01070487,98472.0,98471.0,0.15621719]
[1738660131484,0.06148566,98476.0,98471.0,0.04998819]
[1738660131683,0.06148566,98476.0,98473.0,0.203099]
[1738660131898,0.06148566,98476.0,98472.0,0.203103]
[1738660132121,0.06148566,98476.0,98475.0,0.152322]
[1738660132678,0.06148566,98476.0,98475.0,0.15589489]
[1738660134401,0.06148566,98476.0,98475.0,0.00357289]
[1738660134626,0.06148566,98476.0,98475.0,0.15589489]
[1738660134831,0.07220452,98476.0,98475.0,0.15589489]
[1738660135022,0.06148566,98476.0,98475.0,0.15589489]
[1738660135801,0.26455666,98488.0,98475.0,0.15589489]
[1738660136002,0.10238506,98487.0,98481.0,0.15588589]
[1738660136204,0.01075733,98487.0,98486.0,0.15587789]
[1738660136523,0.8615068,98505.0,98497.0,0.00357289]
[1738660136524,0.0001068,98505.0,98497.0,0.00357289]
[1738660136684,0.26548083,98504.0,98497.0,0.00357289]
[1738660136887,0.11320183,98504.0,98497.0,0.00357289]
[1738660137091,0.01081677,98504.0,98503.0,0.152279]
[1738660137313,0.0001068,98505.0,98503.0,0.152279]
[1738660137523,0.10249186,98505.0,98504.0,0.152278]
[1738660137755,0.10249186,98505.0,98502.0,0.00357289]
[1738660137891,0.10249186,98505.0,98503.0,0.152278]
[1738660138615,0.0001068,98505.0,98504.0,0.15585089]
[1738660141615,0.0001068,98505.0,98504.0,0.00357289]
[1738660142197,0.0001068,98505.0,98498.0,0.0485]
[1738660142397,0.10238506,98504.0,98482.0,0.00357289]
[1738660142626,0.203074,98486.0,98475.0,0.0488]
[1738660142833,0.203058,98494.0,98484.0,0.00357289]
[1738660143041,0.10238506,98493.0,98484.0,0.00357289]
[1738660143634,0.203065,98491.0,98482.0,9.102e-05]
[1738660143853,0.152307,98485.0,98482.0,9.102e-05]
[1738660143984,0.25468606,98490.0,98485.0,0.00357289]